Cogmind - Beta 16 --- EXPLORER MODE // 2025.12.29 @ 12:32:41 Player: K.K.Y. Result: Destroyed by Shrapnel Trap Performance ------------- Evolutions (0) 0 Regions Visited (3) 600 Robots Destroyed (43) 215 Value Destroyed (956) 956 Prototype IDs (0) 0 Alien Tech Used (0) 0 Bonus (0) 0 TOTAL SCORE: 1771 Bonus ------- None Cogmind --------- Core Integrity 0/250 Matter 300/300 Energy 96/100 System Corruption 0% Temperature Cool (2) Movement Treading (160) Location -10/Subcaves Parts ------- > --- POWER (1) -------- (None) > --- PROPULSION (2) --- Light Treads Light Treads > --- UTILITY (3) ------ Medium Storage Unit Structural Scanner > --- WEAPON (2) ------- Riot Gun Particle Cannon > --- INVENTORY (10) --- High-capacity Storage Unit Huge Storage Unit Machine Analyzer Makeshift Light Armor Plating Makeshift Light Armor Plating Makeshift System Shield Barrage Gun Mining Laser Multitool Flail Peak State ------------ > --- POWER ------------ Makeshift Power Source > --- PROPULSION ------- Light Treads Light Treads > --- UTILITY ---------- Medium Storage Unit Structural Scanner Core Shielding > --- WEAPON ----------- Particle Cannon Particle Cannon > --- INVENTORY -------- Light Treads Light Treads High-capacity Storage Unit Huge Storage Unit Machine Analyzer Light Armor Plating Particle Cannon Particle Cannon Mining Laser Flail [Rating: 14] Favorites ----------- Power Ion Engine Engine Ion Engine Power Core Light Nuclear Core Propulsion Light Treads Treads Light Treads Utility Core Shielding Device Structural Scanner Storage Medium Storage Unit Protection Core Shielding Weapon Particle Cannon Energy Gun Riot Gun Energy Cannon Particle Cannon Ballistic Gun Assault Rifle Build | -11 -10 -10 -10 ------- Run | Yrd Mat Min Sub Slots Evolved 1 | . 1 . . Power . | . . . . Propulsion . | . . . . Utility 1 | . 1 . . Weapon . | . . . . Parts Attached 26 | 7 11 1 7 Power 4 | 1 1 . 2 Engine 3 | 1 . . 2 Core 1 | . 1 . . Reactor . | . . . . Propulsion 6 | 2 2 . 2 Treads 6 | 2 2 . 2 Leg . | . . . . Wheel . | . . . . Hover . | . . . . Flight . | . . . . Utility 6 | 2 3 1 . Device 2 | . 1 1 . Storage 2 | . 2 . . Processor . | . . . . Hackware . | . . . . Protection 2 | 2 . . . Artifact . | . . . . Weapon 10 | 2 5 . 3 Energy Gun 1 | . . . 1 Energy Cannon 4 | . 2 . 2 Ballistic Gun 5 | 2 3 . . Ballistic Cannon . | . . . . Launcher . | . . . . Special Weapon . | . . . . Impact Weapon . | . . . . Slashing Weapon . | . . . . Piercing Weapon . | . . . . Special Melee Weapon . | . . . . Unidentified Prototypes . | . . . . Parts Lost 8 | . . . 8 Power 2 | . . . 2 Propulsion 2 | . . . 2 Utility 1 | . . . 1 Weapon 3 | . . . 3 Highest Loss Streak 4 | . . . 4 To Critical Strikes . | . . . . Average Backups 8 | 2 7 9 9 Power . | . . . . Propulsion 1 | . 1 2 1 Utility 3 | 1 3 3 4 Weapon 3 | . 2 4 3 Tool/Special . | . . . . Unused Backups 15 | . 4 1 10 Power 1 | . . 1 . Propulsion 2 | . 1 . 1 Utility 6 | . 1 . 5 Weapon 5 | . 2 . 3 Tool/Special 1 | . . . 1 Average Slot Usage (%) 87 | . 90 100 78 Engine 5 | . 10 . 4 Core 3 | . 1 12 . Treads 18 | . 22 25 12 Device 10 | . 7 12 12 Storage 10 | . 7 12 12 Protection 13 | . 16 12 12 Energy Cannon 20 | . 12 25 22 Ballistic Gun 3 | . 10 . . Peak Build Rating 14 | 7 13 13 14 Average Rating 10 | 6 9 12 9 On Entrance 8 | . 7 13 13 Avg Prop Armor Cover (%) . | . . . . Naked Turns . | . . . . Heaviest Build 25 | 12 25 25 25 Greatest Support 40 | 40 40 40 40 Greatest Overweight (x) 6 | . 1 . 6 Average Overweight (x) . | . . . 2 Largest Inventory Capacity 20 | 5 20 10 10 Average Capacity 9 | 5 8 10 10 Most Carried 10 | 5 10 10 10 Average Carried 8 | 2 7 9 9 Final Capacity 10 | 5 10 10 10 Final Carried 10 | 3 10 10 10 Class Distribution -------------------- 100% | Hacker-Mutant Dominant Class ---------------- Hacker-Mutant | -10/Materials Hacker-Mutant | -10/Mines Hacker-Mutant | -10/Subcaves Resources | -11 -10 -10 -10 ----------- Run | Yrd Mat Min Sub Matter Collected 585 | 335 170 30 50 Remotely . | . . . . Salvage Created 1463 | 248 517 92 606 Parts 101 | 26 39 7 29 Haulers Intercepted 2 | . 2 . . Recyclers Shooed 2 | 2 . . . Parts Field Recycled . | . . . . Retrieved Matter . | . . . . Parts Self-Destructed . | . . . . Prevented . | . . . . Parts Restored . | . . . . Kills | -11 -10 -10 -10 ------- Run | Yrd Mat Min Sub Combat Hostiles Destroyed 24 | . 8 2 14 Guns 4 | . 4 . . Cannons 19 | . 4 2 13 Classes Destroyed 11 | 3 5 . 3 Worker 3 | 1 2 . . Builder 1 | . 1 . . Tunneler 7 | 7 . . . Hauler 2 | . 2 . . Recycler 1 | 1 . . . Turret 2 | . . . 2 Watcher 3 | . 3 . . Swarmer 6 | . 2 . 4 Grunt 8 | . 6 2 . Artisan 1 | . . . 1 Subdweller 10 | . . . 10 Best Kill Streak 4 | 4 3 2 4 Combat Bots Only 4 | . 2 2 4 Max Kills in Single Turn 1 | 1 1 1 1 Gunslinging . | . . . . Exploded . | . . . . Melee . | . . . . Uniques/NPCs Destroyed . | . . . . Combat | -11 -10 -10 -10 -------- Run | Yrd Mat Min Sub Hostile Shots Fired 171 | . 24 14 133 Missed 45 | . 3 4 38 Hits 126 | . 21 10 95 Projectile 126 | . 21 10 95 Critical Strikes 3 | . . . 3 Actively Blocked 2 | . . . 2 Damage Taken 1334 | . 143 76 1115 Core 262 | . 29 11 222 Absorbed by Shields . | . . . . Redirected to Shielding 52 | . 5 2 45 Ignored by Resistances 772 | . 96 49 627 Core Remaining (%) 100 | 100 . . . Volleys Fired 129 | 20 28 6 75 Largest 2 | 2 2 2 2 Hottest 136 | 40 136 136 136 Shots Fired 220 | 37 54 12 117 Gun 59 | 37 22 . . Cannon 161 | . 32 12 117 Launcher . | . . . . Special . | . . . . Kinetic 59 | 37 22 . . Thermal 161 | . 32 12 117 Explosive . | . . . . Electromagnetic . | . . . . Robot Hit Streak 30 | 17 19 8 30 Robot Miss Streak 4 | 1 4 1 2 Penetration Max . | . . . . Secondary Targets 1 | . 1 . . Max Gunslinging Chain 1 | . 1 . . Shots Hit Robots 152 | 26 37 9 80 Core Hits 64 | 11 22 3 28 Critical Kills 1 | . . . 1 Critical Parts Destroyed . | . . . . Critical Strikes 1 | . . . 1 Meltdown 1 | . . . 1 Melee Attacks . | . . . . Impact . | . . . . Slashing . | . . . . Piercing . | . . . . Sneak Attacks . | . . . . Combat Hostiles . | . . . . Follow-up Attacks . | . . . . Damage Inflicted 2828 | 293 663 186 1686 Guns 482 | 293 189 . . Cannons 2346 | . 474 186 1686 Explosions . | . . . . Melee . | . . . . Ramming . | . . . . Kinetic 482 | 293 189 . . Thermal 2346 | . 474 186 1686 Explosive . | . . . . Electromagnetic . | . . . . Impact . | . . . . Slashing . | . . . . Piercing . | . . . . Highest Corruption . | . . . . Average Corruption . | . . . . Corruption Purged . | . . . . Corruption Blocked . | . . . . Overload Shots . | . . . . Overflow Damage . | . . . . Projectiles . | . . . . Explosions . | . . . . Melee . | . . . . Knockbacks . | . . . . Impact . | . . . . Kinetic . | . . . . Secondary . | . . . . Self-Inflicted Damage . | . . . . Shots . | . . . . Rammed . | . . . . Targets Rammed . | . . . . Kicked . | . . . . Crushed . | . . . . Highest Temperature 470 | 12 367 470 240 Average Temperature 101 | 5 117 243 65 Received Heat Transfer 381 | . 111 69 201 Effects 6 | . . 3 3 Shutdowns 1 | . . 1 . Interference 4 | . . 1 3 Short Circuit 1 | . . 1 . Siege Activations . | . . . . Martial Activations . | . . . . Shielding Activations . | . . . . Robots Disrupted . | . . . . Combat Hostiles . | . . . . Robots Corrupted . | . . . . Combat Hostiles . | . . . . Parts Fried . | . . . . Impact Corruptions . | . . . . Robots Melted 1 | . . . 1 Combat Hostiles 1 | . . . 1 Parts Melted 3 | . . . 3 Heat Transferred 4218 | . 851 333 3034 Parts Sabotaged . | . . . . Parts Stolen . | . . . . Parts Stripped . | . . . . Power Chain Reactions . | . . . . Alert | -11 -10 -10 -10 ------- Run | Yrd Mat Min Sub Maximum Alert Level . | . . . . Low Security (%) 100 | 100 100 100 . Level 1 . | . . . . Level 2 . | . . . . Level 3 . | . . . . Level 4 . | . . . . Level 5 . | . . . . High Security . | . . . . Max Security . | . . . . Peak Influence 57 | 15 57 50 . Initial . | . . . . Average 3 | 1 4 1 . Influence Increases 535 | 45 241 54 195 Destroy 0b10 Robot/C 320 | . 160 40 120 Destroy 0b10 Robot/NC 85 | 45 40 . . Destroy Leader 50 | . 40 10 . Successful Hack 1 | . 1 . . Disable Machine 4 | . . 4 . Lose Combat Pursuer 75 | . . . 75 Influence Decreases 535 | 45 241 54 195 Time Decay 525 | 45 241 54 185 Lost Part 10 | . . . 10 Squads Dispatched . | . . . . Investigation . | . . . . Extermination . | . . . . Reinforcement . | . . . . Assault . | . . . . Garrison . | . . . . Intercept . | . . . . Searches Triggered . | . . . . Construction Impeded . | . . . . Haulers Reinforced . | . . . . Active Scanning Responses . | . . . . Cargo Convoy Interrupts . | . . . . Stealth | -11 -10 -10 -10 --------- Run | Yrd Mat Min Sub Distress Signals . | . . . . Communications Jammed . | . . . . Distress Signals . | . . . . Times Spotted 34 | . 13 2 19 Peak Tracking Total 6 | . 2 2 6 Tactical Retreats 2 | . . . 2 Traps | -11 -10 -10 -10 ------- Run | Yrd Mat Min Sub Traps Triggered 4 | . 1 . 3 Indirectly . | . . . . Trap Hack Attempts . | . . . . Triggered . | . . . . Disarmed . | . . . . Reprogrammed . | . . . . Reused . | . . . . Traps Extracted . | . . . . Installed . | . . . . Triggered . | . . . . Machines | -11 -10 -10 -10 ---------- Run | Yrd Mat Min Sub Machines Disabled 3 | . . 1 2 Max in Single Turn 1 | . . 1 1 Machines Repaired . | . . . . Machines Dismantled . | . . . . Machines Sabotaged . | . . . . Overloaded Fab Kills . | . . . . Hacking | -11 -10 -10 -10 --------- Run | Yrd Mat Min Sub Machines Accessed 7 | . 6 1 . Terminals 6 | . 6 . . Fabricators . | . . . . Repair Stations . | . . . . Recycling Units . | . . . . Scanalyzers . | . . . . Garrison Access . | . . . . Total Hacks 9 | . 8 1 . Successful 7 | . 6 1 . Failed 2 | . 2 . . Catastrophic . | . . . . Database Lockouts . | . . . . Manual 8 | . 8 . . Terminals 8 | . 8 . . Fabricators . | . . . . Repair Stations . | . . . . Recycling Units . | . . . . Scanalyzers . | . . . . Garrison Access . | . . . . Terminal Hacks 1 | . . 1 . Open Door 1 | . . 1 . Fabricator Hacks . | . . . . Repair Station Hacks . | . . . . Recycling Unit Hacks . | . . . . Scanalyzer . | . . . . Garrison Access Hacks . | . . . . Unauthorized Hacks 6 | . 6 . . Terminals 6 | . 6 . . Botnet 6 | . 6 . . Fabricators . | . . . . Repair Stations . | . . . . Recycling Units . | . . . . Scanalyzers . | . . . . Garrison Access . | . . . . Data Cores Recovered . | . . . . Used . | . . . . Hacking Detections 1 | . 1 . . Full Trace Events . | . . . . Feedback Events . | . . . . Feedback Blocked . | . . . . Robot Schematics Acquired . | . . . . Robots Built . | . . . . Authchips . | . . . . Time . | . . . . Total Robot Build Rating . | . . . . Part Schematics Acquired . | . . . . Parts Built . | . . . . Authchips . | . . . . Time . | . . . . Total Part Build Rating . | . . . . Part Studies Acquired . | . . . . Parts Repaired . | . . . . Time . | . . . . Parts Recycled . | . . . . Recycled Matter . | . . . . Retrieved Matter . | . . . . Retrieved Components . | . . . . Parts Scanalyzed . | . . . . Part Schematics Acquired . | . . . . Parts Damaged . | . . . . Bothacking | -11 -10 -10 -10 ------------ Run | Yrd Mat Min Sub Used RIF Installer . | . . . . Robots Hacked . | . . . . Non-combat . | . . . . Combat . | . . . . Robot Hacks Applied . | . . . . Relay Couplers Released . | . . . . Fabnet Peak Effective % . | . . . . Robots Rewired . | . . . . Allies Hacked . | . . . . Hacks Repelled . | . . . . Allies | -11 -10 -10 -10 -------- Run | Yrd Mat Min Sub Total Allies . | . . . . Largest Group . | . . . . Highest-Rated Group . | . . . . Highest-Rated Ally . | . . . . Total Orders . | . . . . Ally Attacks . | . . . . Total Damage . | . . . . Kills . | . . . . Allies Corrupted . | . . . . Allies Melted . | . . . . Intel | -11 -10 -10 -10 ------- Run | Yrd Mat Min Sub Active Infowar (turns) 2956 | . 831 1178 947 Structural 2956 | . 831 1178 947 Robot Analysis Total . | . . . . Derelict Logs Recovered 2 | . . 2 . Drone Launches . | . . . . Drone Recoveries . | . . . . Exploration | -11 -10 -10 -10 ------------- Run | Yrd Mat Min Sub Turns Passed 4898 | 264 1357 1187 2090 Spaces Moved 2397 | 136 736 717 808 Core 320 | 36 . . 284 Treads 2077 | 100 736 717 524 Legs . | . . . . Wheels . | . . . . Hover . | . . . . Flight . | . . . . Fastest Speed 50 | 50 160 160 160 Average Speed 182 | 130 165 160 226 Slowest Speed 350 | 160 240 160 350 Overloaded Moves . | . . . . Propulsion Burnouts . | . . . . Robots Hopped . | . . . . Potential Cave-ins . | . . . . Cave-ins Triggered . | . . . . Exploration Rate (%) 64 | 6 95 99 57 Regions Visited 3 Branch Regions 2 Pre-discovered Areas 1 | . . . 1 Known Exits Taken 3 | 1 1 1 . Unknown Exits Taken . | . . . . Scrap Searched 15 | . . 1 14 Spaces Dug . | . . . . Terrain Destroyed . | . . . . Melee . | . . . . Projectile . | . . . . AOE . | . . . . Terrain Rammed . | . . . . Walls Destroyed . | . . . . Machines Disabled . | . . . . Actions | -11 -10 -10 -10 --------- Run | Yrd Mat Min Sub Total 2716 | 187 827 747 955 Wait 115 | 18 22 20 55 Move 2394 | 135 735 716 808 Hop . | . . . . Pick Up 33 | 7 17 2 7 Fast Attach 7 | 3 3 . 1 Attach 14 | 4 4 1 5 Detach 1 | . 1 . . Swap 6 | . 5 . 1 Drop 17 | . 12 2 3 Fire 129 | 20 28 6 75 Melee . | . . . . Ram . | . . . . Kick . | . . . . Crush . | . . . . Escape Stasis . | . . . . Rewire . | . . . . Trap . | . . . . Miscellaneous . | . . . . Route ------- -11/Scrapyard -10/Materials (discovered 4 exits: *Mat x3 / *Min) -10/Mines (discovered 4 exits: *Mat x2 / Exi / *Sub) -10/Subcaves (discovered 3 exits: *Mat x2 / *Rec) History --------- Turn | Location | Event 5 | -11/Scrapyard | Identified exit to Materials 5 | -11/Scrapyard | Discovered exit to Materials (range 14) 265 | -11/Scrapyard | Entered Materials 265 | -10/Materials | Evolved 1 slot: Utility x1 304 | -10/Materials | Build established: Hacker-Mutant 646 | -10/Materials | Identified exit to Materials 646 | -10/Materials | Discovered exit to Materials (range 5) 860 | -10/Materials | Discovered exit to Materials (range 15) 1421 | -10/Materials | Discovered exit to Materials (range 7) 1451 | -10/Materials | Identified exit to Mines 1451 | -10/Materials | Discovered exit to Mines (range 16) 1622 | -10/Materials | Entered Mines 1690 | -10/Mines | Learned 4 Materials zone layouts 1692 | -10/Mines | Found the Drone Emporium 1696 | -10/Mines | Identified exit to Subcaves 2112 | -10/Mines | Deemed a non-threat by the Exiles lab entrance 2112 | -10/Mines | Identified exit to Exiles 2112 | -10/Mines | Discovered exit to Exiles (range 6) 2160 | -10/Mines | Discovered exit to Materials (range 13) 2245 | -10/Mines | Discovered exit to Materials (range 9) 2326 | -10/Mines | Found a hidden stash of uninstalled traps 2809 | -10/Mines | Entered Subcaves 2809 | -10/Subcaves | Identified exit to Recycling 2809 | -10/Subcaves | Discovered exit to Recycling (range 9) 2810 | -10/Subcaves | Approached by a straggling Scientist 2972 | -10/Subcaves | Shifting Twisted Machinery released Mak. Axe 3042 | -10/Subcaves | Shifting Twisted Machinery released Sub. Optics 3118 | -10/Subcaves | Identified exit to Materials 3118 | -10/Subcaves | Discovered exit to Materials (range 9) 3386 | -10/Subcaves | Learned location of Zion (-6) 3386 | -10/Subcaves | Met a Zionite searching for "candidates" 3556 | -10/Subcaves | Core integrity fell below 50% 3570 | -10/Subcaves | Discovered exit to Materials (range 4) 3614 | -10/Subcaves | Shifting Twisted Machinery released Mak. System Shield 3753 | -10/Subcaves | Lost 4 parts (1p2n1w) 3833 | -10/Subcaves | Shifting Twisted Machinery released Sub. Laser 4221 | -10/Subcaves | A swath of the cavern ceiling suddenly collapsed 4516 | -10/Subcaves | Shifting Twisted Machinery released Multitool 4533 | -10/Subcaves | Shifting Twisted Machinery released Battle Cannon 4637 | -10/Subcaves | Core integrity fell below 20% 4899 | -10/Subcaves | Destroyed by Shrapnel Trap Last Messages --------------- 04707_ Searching scrap... 04707_ Found Piercing Trap. 04707_ Found 53 Matter. 04713_ Acquired Riot Gun. 04718_ Searching scrap... 04718_ Found Scrap Shield. 04718_ Found 50 Matter. 04719_ Acquired 10 matter. 04725_ Searching scrap... 04725_ Found Sub. Laser. 04725_ Found 46 Matter. 04759_ Acquired Mak. Light Armor Plating. 04765_ Acquired 20 matter. 04865_ Triggered Piercing Trap. 04865_ Spikes shoot up from the floor. 04865_ Critical hit (Impale). 04899_ Triggered Shrapnel Trap. 04899_ An expanding cloud of shrapnel blasts out in all directions. 04899_ Core Shielding destroyed. Map ----- +----------------------------------------------------+ | ?????????????????????????????????????????????????? | | ?????????????????????????????????????????????????? | | ?????????????????????????????????????????????????? | | ?????????????????????????????????????????????????? | | ?????????????????????????????????????????????????? | | ?????????????????????????????????????????????????? | | ?????????????????????????????????????????????????? | | ??????????????????????????????????? ???????????? | | ?????????????????????????????????? ###??????????? | | ?????????????????????????????????? ###??????????? | | ????????????????????????????????? ##??????????? | | ????????????????????????????????? ?????????????? | | ???????????????????????????????? ??????????????? | | ??????????????????########?????? ??????????????? | | ??????????????????############# ###?????????????? | | ??????????????????# ## ###### #######?????????? | | ????????????????????? ######?????????? | | ???????????????????????? ##?????????? | | ????????????????????????## ???????????????? | | ????????????????????? #### ##?????????????????? | | ????????????????????? #### ###?????????????????? | | ????????????????????### ## ###?????????????????? | | ?????????##?????????### ^##??????????????????? | | ?????????# ###??????## ###??????????????????? | | ?????????#" #??????## ^ ###??????????????????? | | ?????????##" ##?????## @ ##???????????????????? | | ??????????#" #?????### ###???????????????????? | | ??????????## ##????###^ ^####???????????????????? | | ????????##### ####### ####???????????????????? | | ???????## ## # #### ###???????????????????? | | #####?### ##???????????????????? | | ""#### ^ ##???????????????????? | | """ ""### ## ####???????????????????? | | " " ## #### ######???????????????????? | | " ## ## ## ###?????????????????????? | | "##" * # ####? ##??????????????????????? | | ####%## ##???? # ##??????????????????????? | | ""## =#" #???? ## ??????????????????????? | | %"## #??? ??????????????????????? | | ## ##?# ????????????????????????? | | ] ## #"" ## ????????????????????????? | | % ######" ????????????????????????? | | ##????# ???????????????????????? | | "#?????## ???????????????????????? | | #????### ????????????????????????? | | ##????# ## ## ????????????????????????? | | ??????## ##? #??? ??????????????????????????? | | ???????## ##?? #??????????????????????????????? | | ????????# #?? #?????????????????????????????? | | ????????## ##?????"?????????????????????????????? | +----------------------------------------------------+ Best States ------------- Heat Dissipation 25 Energy Generation 15 Energy Capacity 250 Matter Stores 300 Matter Capacity 300 Sight Range 16 Terrain Scan Density 10 Armor Coverage 150 Resistance: KI 35 Resistance: TH 35 Resistance: EX 35 Resistance: EM 35 Resistance: I 35 Resistance: S 35 Resistance: P 35 Core Shielding 20 Evasion (%) 50 Recoil Reduction 2 Offensive Hacking 20 Item Schematics ----------------- None Robot Schematics ------------------ None Fabricated ------------ Nothing Repaired ---------- Nothing Studied --------- None Alien Tech Used ----------------- None Achievements -------------- None Challenges ------------ None Game ------ Seed GodHypervelocityBotcube Manual? 0 Play Time 00:18:58 Cumulative 232.8 hours Start 2025.12.29 @ 12:08:29 End 2025.12.29 @ 12:32:41 Sessions 1 Manual Loads 0 Difficulty Explorer Special Mode None Game No. 364 Rogue 0 Adventurer 0 Explorer 364 Win Type - Total 0 Types 0/0/0/0/0/0/0/0/0/0 Lore% 71 Gallery% 68 Achievement% 54 Wizard Run 0 Options --------- Layout 1 ASCII 0 Keyboard 0 Movement Mouse Keybinds 0 Fullscreen 1 Font 24/Smallcaps Map View 50x35 Zoom Use 0% Tactical HUD 1 Map Filters NONE Filters NONE Steam 1 RUN: 491a6acb-ab1b-44a1-a14c-2cc23d9b78af